bitfinex/quotes_BTCUSD_20241203
["timestamp","ask_amount","ask_price","bid_price","bid_amount"]
[1733192361117,0.35855,95900.0,95899.0,0.10475128]
[1733192361350,0.35955,95900.0,95899.0,0.10475128]
[1733192362407,0.36055,95900.0,95899.0,0.10475128]
[1733192362831,0.35955,95900.0,95899.0,0.10475128]
[1733192363033,0.4363135,95900.0,95899.0,0.10475128]
[1733192363444,0.4373135,95900.0,95899.0,0.10475128]
[1733192363652,0.4363135,95900.0,95899.0,0.10475128]
[1733192363851,0.35855,95900.0,95899.0,0.10475128]
[1733192364664,0.35955,95900.0,95899.0,0.10475128]
[1733192366077,0.35855,95900.0,95899.0,0.10475128]
[1733192366504,0.35955,95900.0,95899.0,0.10475128]
[1733192366711,0.38084451,95900.0,95899.0,0.10475128]
[1733192366934,0.38084451,95900.0,95899.0,0.18355128]
[1733192367139,0.37984451,95900.0,95899.0,0.18355128]
[1733192367347,0.45963746,95900.0,95899.0,0.11297863]
[1733192367761,0.45963746,95900.0,95899.0,0.10475128]
[1733192367964,0.45963746,95900.0,95899.0,0.10975128]
[1733192369614,0.45963746,95900.0,95899.0,0.11075128]
[1733192369865,0.45963746,95900.0,95899.0,0.10575128]
[1733192370094,0.37984451,95900.0,95899.0,0.10775128]
[1733192370326,0.37984451,95900.0,95899.0,0.10575128]
[1733192370561,0.37984451,95900.0,95899.0,0.10875128]
[1733192371045,0.37984451,95900.0,95899.0,0.10575128]
[1733192371277,0.35855,95900.0,95899.0,0.10775128]
[1733192371534,0.4444035,95900.0,95899.0,0.10475128]
[1733192372008,0.4444035,95900.0,95899.0,0.10775128]
[1733192372504,0.4444035,95900.0,95899.0,0.10975128]
[1733192372988,0.4444035,95900.0,95899.0,0.10475128]
[1733192373479,0.4454035,95900.0,95899.0,0.10575128]
[1733192373707,0.4454035,95900.0,95899.0,0.10475128]
[1733192373952,0.4444035,95900.0,95899.0,0.10475128]
[1733192374154,0.4464035,95900.0,95899.0,0.10475128]
[1733192374415,0.4454035,95900.0,95899.0,0.10475128]
[1733192374641,0.4464035,95900.0,95899.0,0.10475128]
[1733192375136,0.36055,95900.0,95899.0,0.10475128]
[1733192375559,0.35955,95900.0,95899.0,0.10475128]
[1733192375980,0.36055,95900.0,95899.0,0.10475128]
[1733192376191,0.35955,95900.0,95899.0,0.10475128]
[1733192376395,0.35855,95900.0,95899.0,0.10475128]
[1733192376823,0.37965857,95900.0,95899.0,0.10475128]
[1733192378353,0.37965857,95900.0,95899.0,0.08475128]
[1733192379000,0.37965857,95900.0,95899.0,0.08575128]
[1733192379411,0.37965857,95900.0,95899.0,0.08475128]
[1733192379617,0.37965857,95900.0,95899.0,0.08775128]
[1733192379822,0.37965857,95900.0,95899.0,0.08875128]
[1733192380438,0.37965857,95900.0,95899.0,0.08475128]
[1733192380653,0.37965857,95900.0,95899.0,0.08775128]
[1733192381392,0.35855,95900.0,95899.0,0.08775128]
[1733192381807,0.35855,95900.0,95899.0,0.08975128]
[1733192382835,0.35855,95900.0,95899.0,0.08775128]
[1733192383039,0.35855,95900.0,95899.0,0.08675128]
[1733192383254,0.4361135,95900.0,95899.0,0.08975128]
[1733192384739,0.35855,95900.0,95899.0,0.08975128]
[1733192385443,0.20855,95900.0,95899.0,0.21925128]
[1733192385649,0.208546,95902.0,95899.0,0.21725128]
[1733192385864,0.208546,95902.0,95901.0,0.10284521]
[1733192386078,0.18505264,95902.0,95901.0,0.10284521]
[1733192386290,0.18505264,95902.0,95901.0,0.11106601]
[1733192386498,0.18505264,95902.0,95901.0,0.10284521]
[1733192386705,0.18505264,95902.0,95901.0,0.11106578]
[1733192387549,0.18505264,95902.0,95901.0,0.11206578]
[1733192388664,0.18505264,95902.0,95901.0,0.11106578]
[1733192389078,0.18505264,95902.0,95901.0,0.11206578]
[1733192389552,0.18505264,95902.0,95901.0,0.11406578]
[1733192389767,0.18505264,95902.0,95901.0,0.11206578]
[1733192389977,0.18505264,95902.0,95901.0,0.11506578]
[1733192396648,0.18591784,95902.0,95901.0,0.11506578]
[1733192397427,0.18591784,95902.0,95901.0,0.12754858]
[1733192397832,0.18591784,95902.0,95901.0,0.12354858]
[1733192398231,0.18591784,95902.0,95901.0,0.12454858]
[1733192398646,0.23322443,95902.0,95901.0,0.12454858]
[1733192398861,0.38322443,95902.0,95901.0,0.12454858]
[1733192399079,0.38322443,95902.0,95901.0,0.11832801]
[1733192400139,0.35855,95900.0,95899.0,2e-07]
[1733192400350,0.46138146,95900.0,95899.0,2e-07]
[1733192400676,0.53718146,95900.0,95899.0,2e-07]
[1733192400857,0.78608146,95900.0,95899.0,2e-07]
[1733192401062,0.98608146,95900.0,95899.0,2e-07]
[1733192401259,0.78608146,95900.0,95899.0,2e-07]
[1733192401475,0.98608146,95900.0,95899.0,2e-07]
[1733192402084,0.88425,95900.0,95899.0,2e-07]
[1733192402815,0.88725,95900.0,95899.0,2e-07]
[1733192402944,0.68425,95900.0,95899.0,2e-07]
[1733192403798,0.68925,95900.0,95899.0,2e-07]
[1733192404114,0.36455,95900.0,95899.0,2e-07]
[1733192404951,0.46738146,95900.0,95899.0,2e-07]
[1733192405155,0.54768146,95900.0,95899.0,2e-07]
[1733192405328,0.59438146,95900.0,95899.0,2e-07]
[1733192405526,0.59138146,95900.0,95899.0,2e-07]
[1733192405908,0.59438146,95900.0,95899.0,2e-07]
[1733192406513,0.59738146,95900.0,95899.0,2e-07]
[1733192407033,0.59538146,95900.0,95899.0,2e-07]
[1733192407414,0.59738146,95900.0,95899.0,2e-07]
[1733192407817,0.79738146,95900.0,95899.0,2e-07]
[1733192411232,0.69455,95900.0,95899.0,2e-07]
[1733192411439,0.49455,95900.0,95899.0,2e-07]
[1733192412067,0.49255,95900.0,95899.0,2e-07]
[1733192412234,0.48655,95900.0,95899.0,2e-07]
[1733192412445,0.48855,95900.0,95899.0,2e-07]
[1733192412604,0.49155,95900.0,95899.0,2e-07]
[1733192413006,0.49455,95900.0,95899.0,2e-07]
[1733192413448,0.59538146,95900.0,95899.0,2e-07]
[1733192413893,0.59738146,95900.0,95899.0,2e-07]
[1733192414527,0.36655,95900.0,95899.0,2e-07]
[1733192416764,0.36455,95900.0,95899.0,2e-07]
[1733192416980,0.36655,95900.0,95899.0,0.10284541]
[1733192417211,0.21655,95900.0,95899.0,0.10284541]
[1733192417629,0.21455,95900.0,95899.0,0.1110847]
[1733192417853,0.21655,95900.0,95899.0,0.1110847]
[1733192418077,0.21055,95900.0,95899.0,0.1110847]
[1733192418310,0.20855,95900.0,95899.0,0.1110847]
[1733192418586,0.36155,95900.0,95899.0,0.1110847]
[1733192418832,0.20855,95900.0,95899.0,0.1130847]
[1733192419070,0.39446384,95902.0,95899.0,0.12086788]
[1733192419334,0.18591784,95902.0,95901.0,0.10284521]
[1733192419659,0.18591784,95902.0,95901.0,0.118859]
[1733192420574,0.18591784,95902.0,95901.0,0.11885867]
[1733192420796,0.0008652,95902.0,95901.0,0.11885867]
[1733192421008,0.0008652,95902.0,95901.0,0.24835867]
[1733192421218,0.0008652,95902.0,95901.0,0.25035867]
[1733192421428,0.208546,95902.0,95901.0,0.25035867]
[1733192421639,0.208546,95902.0,95901.0,0.24835867]
[1733192421846,0.208546,95902.0,95901.0,0.12085867]
[1733192422262,0.208546,95902.0,95901.0,0.12885867]
[1733192422480,0.208546,95902.0,95901.0,0.12085867]
[1733192422894,0.208546,95902.0,95901.0,0.12985867]
[1733192423098,0.208546,95902.0,95901.0,0.12785867]
[1733192423372,0.208534,95908.0,95901.0,0.18275867]
[1733192423560,0.208527,95911.0,95901.0,0.18275867]
[1733192423561,0.208531,95909.0,95907.0,0.10284521]
[1733192423790,0.208531,95909.0,95908.0,0.24342806]
[1733192424037,0.208531,95909.0,95908.0,0.25163144]
[1733192425138,0.208504,95922.0,95908.0,0.2438537]
[1733192425345,0.208515,95917.0,95909.0,0.19453221]
[1733192425555,0.208515,95917.0,95909.0,0.20274023]
[1733192425766,0.208515,95917.0,95909.0,0.25214023]
[1733192425974,0.208515,95917.0,95909.0,0.25122658]
[1733192426212,0.208504,95922.0,95909.0,0.25122658]
[1733192426424,0.208495,95926.0,95909.0,0.65975758]
[1733192427044,0.20849,95928.0,95914.0,0.33642]
[1733192427254,0.20849,95928.0,95914.0,0.64703856]
[1733192427255,0.208491,95928.0,95914.0,0.64703856]
[1733192427479,0.02223341,95915.0,95914.0,0.65522232]
[1733192427928,0.02223341,95915.0,95914.0,0.44670232]
[1733192428146,0.02223341,95915.0,95914.0,0.64670232]
[1733192428587,0.000865,95937.0,95914.0,0.64670232]
[1733192428588,0.000865,95937.0,95926.0,0.081]
[1733192428826,0.208454,95945.0,95926.0,0.081]
[1733192428827,0.0009812,95945.0,95936.0,0.10284521]
[1733192429047,0.0009812,95945.0,95944.0,0.10284521]
[1733192429260,0.15,95949.0,95944.0,0.10284521]
[1733192429261,0.20845,95946.0,95944.0,0.10284521]
[1733192429481,0.15,95945.0,95944.0,0.00818423]
[1733192429724,0.416908,95944.0,95940.0,0.00775866]
[1733192429952,0.208484,95931.0,95927.0,0.00867137]
[1733192430183,0.208485,95930.0,95928.0,0.01593873]
[1733192430414,0.208485,95930.0,95929.0,0.00774691]
[1733192431347,0.208485,95930.0,95929.0,0.01593825]
[1733192432227,0.208485,95930.0,95929.0,0.02493825]
[1733192432882,0.208485,95930.0,95929.0,0.02993825]
[1733192433736,0.208485,95930.0,95929.0,0.13278346]
[1733192434383,0.208485,95930.0,95929.0,0.12503655]
[1733192434592,0.21079137,95930.0,95929.0,0.12503655]
[1733192434829,0.208485,95930.0,95929.0,0.12503655]
[1733192435035,0.208485,95930.0,95929.0,0.11603655]
[1733192435252,0.208485,95930.0,95929.0,0.12503655]
[1733192435466,0.208485,95930.0,95929.0,0.12777972]
[1733192435671,0.208485,95930.0,95929.0,0.13277972]
[1733192435889,0.208472,95937.0,95929.0,0.21077972]
[1733192436100,0.208465,95940.0,95936.0,0.10284521]
[1733192436306,0.208476,95935.0,95930.0,0.0009129]
[1733192436515,0.208476,95935.0,95931.0,0.0077427]
[1733192436717,0.208476,95935.0,95932.0,0.0077427]
[1733192436928,0.208476,95935.0,95933.0,0.0077427]
[1733192437137,0.208476,95935.0,95934.0,0.0077427]
[1733192437342,0.208476,95935.0,95934.0,0.01760065]
[1733192437774,0.208476,95935.0,95934.0,0.01759882]
[1733192438678,0.208476,95935.0,95934.0,0.02459882]
[1733192438865,0.208476,95935.0,95934.0,0.12744403]
[1733192439503,0.208476,95935.0,95934.0,0.13144403]
[1733192439934,0.208476,95935.0,95934.0,0.12044403]
[1733192440348,0.208476,95935.0,95934.0,0.12944403]
[1733192440558,0.208476,95935.0,95934.0,0.12344403]
[1733192440559,0.2501705,95935.0,95934.0,0.12344403]
[1733192440975,0.208476,95935.0,95934.0,0.13244403]
[1733192441187,0.208476,95935.0,95934.0,0.12344403]
[1733192441624,0.208476,95935.0,95934.0,0.12644403]
[1733192441831,0.208476,95935.0,95934.0,0.12544403]
[1733192442240,0.208476,95935.0,95934.0,0.12044403]
[1733192442665,0.208476,95935.0,95934.0,0.12144403]
[1733192443614,0.2093413,95935.0,95934.0,0.12044403]
[1733192443821,0.2093413,95935.0,95934.0,0.12244403]
[1733192444211,0.2093413,95935.0,95934.0,0.12044403]
[1733192444638,0.2093413,95935.0,95934.0,0.12444403]
[1733192445087,0.2093413,95935.0,95934.0,0.12244403]
[1733192445292,0.2093413,95935.0,95934.0,0.12344403]
[1733192445548,0.2093413,95935.0,95934.0,0.12144403]
[1733192445752,0.2093413,95935.0,95934.0,0.12244403]
[1733192446810,0.2093413,95935.0,95934.0,0.12044403]
[1733192447016,0.2093413,95935.0,95934.0,0.12344403]
[1733192448096,0.2093413,95935.0,95934.0,0.12544403]
[1733192448517,0.2093413,95935.0,95934.0,0.12344403]
[1733192449625,0.2093413,95935.0,95934.0,0.12044403]
[1733192449830,0.2093413,95935.0,95934.0,0.12344403]
[1733192450071,0.0008653,95935.0,95934.0,0.12344403]
[1733192450724,0.0008653,95935.0,95934.0,0.12844403]
[1733192450928,0.0008653,95935.0,95934.0,0.12344403]
[1733192451137,0.0008653,95935.0,95934.0,0.12044403]
[1733192451359,0.0008653,95935.0,95934.0,0.12944403]
[1733192451563,0.0008653,95935.0,95934.0,0.12344403]
[1733192451769,0.0008653,95935.0,95934.0,0.13049576]
[1733192452385,0.0008653,95935.0,95934.0,0.12749576]
[1733192452697,0.0008653,95935.0,95934.0,0.13149576]
[1733192452878,0.0008653,95935.0,95934.0,0.12449576]
[1733192453267,0.0008653,95935.0,95934.0,0.11463781]
[1733192453941,0.0008653,95935.0,95934.0,0.11063781]
[1733192454156,0.0008653,95935.0,95934.0,0.11963781]
[1733192454362,0.20847,95937.0,95934.0,0.12363781]
[1733192454570,0.208461,95941.0,95936.0,0.10284521]
[1733192454772,0.208461,95941.0,95938.0,0.10284521]
[1733192454773,0.416922,95941.0,95938.0,0.10284521]
[1733192454985,0.208461,95941.0,95939.0,0.0176489]
[1733192455212,0.208461,95941.0,95940.0,0.11063781]
[1733192455624,0.208461,95941.0,95940.0,0.12050232]
[1733192457358,0.208461,95941.0,95940.0,0.19670232]
[1733192457560,0.208461,95941.0,95940.0,0.20170232]
[1733192457948,0.208461,95941.0,95940.0,0.19670232]
[1733192458154,0.208461,95941.0,95940.0,0.20570232]
[1733192458365,0.208461,95941.0,95940.0,0.20270232]
[1733192458880,0.208461,95941.0,95940.0,0.20570232]
[1733192459060,0.208461,95941.0,95940.0,0.21170232]
[1733192460015,0.208461,95941.0,95940.0,0.13550232]
[1733192461293,0.208461,95941.0,95940.0,0.13550375]
[1733192463878,0.208461,95941.0,95940.0,0.12950375]
[1733192464103,0.208461,95941.0,95940.0,0.12050375]
[1733192464310,0.208461,95941.0,95940.0,0.12250375]
[1733192464503,0.208461,95941.0,95940.0,0.12650375]
[1733192464782,0.208461,95941.0,95940.0,0.12050375]
[1733192464979,0.208461,95941.0,95940.0,0.12650375]
[1733192465392,0.208461,95941.0,95940.0,0.12250375]
[1733192465793,0.208461,95941.0,95940.0,0.12650375]
[1733192466410,0.208461,95941.0,95940.0,0.12450375]
[1733192466609,0.208461,95941.0,95940.0,0.12650375]
[1733192467016,0.208461,95941.0,95940.0,0.12250375]
[1733192467219,0.208461,95941.0,95940.0,0.12050375]
[1733192467437,0.208461,95941.0,95940.0,0.13450375]
[1733192467639,0.208461,95941.0,95940.0,0.12550375]
[1733192467858,0.2093258,95941.0,95940.0,0.12050375]
[1733192468064,0.2093258,95941.0,95940.0,0.12950375]
[1733192468269,0.2093258,95941.0,95940.0,0.12050375]
[1733192468467,0.2093258,95941.0,95940.0,0.12550375]
[1733192469110,0.2093258,95941.0,95940.0,0.13450375]
[1733192469929,0.2093258,95941.0,95940.0,0.12950375]
[1733192470388,0.2093258,95941.0,95940.0,0.12550375]
[1733192470604,0.3593258,95941.0,95940.0,0.13450375]
[1733192470805,0.3593258,95941.0,95940.0,0.14698449]
[1733192471494,0.3593258,95941.0,95940.0,0.13298449]
[1733192471853,0.3593258,95941.0,95940.0,0.13698449]
[1733192472156,0.3593258,95941.0,95940.0,0.13498449]
[1733192472523,0.3593258,95941.0,95940.0,0.13998449]
[1733192473588,0.3593258,95941.0,95940.0,0.13798449]
[1733192473796,0.3593258,95941.0,95940.0,0.14098449]
[1733192477548,0.3593258,95941.0,95940.0,0.13298449]
[1733192477751,0.35018428,95941.0,95940.0,0.13298449]
[1733192477966,0.35018428,95941.0,95940.0,0.14098449]
[1733192480434,0.35018428,95941.0,95940.0,0.14271409]
[1733192482303,0.35018428,95941.0,95940.0,0.14271439]
[1733192487688,0.40610637,95941.0,95940.0,0.14271439]
[1733192487890,0.48420637,95941.0,95940.0,0.14271439]
[1733192488370,0.42828428,95941.0,95940.0,0.13285858]
[1733192489153,0.42828428,95941.0,95940.0,0.12985858]
[1733192489359,0.42828428,95941.0,95940.0,0.13185292]
[1733192489727,0.42828428,95941.0,95940.0,0.12485292]
[1733192490128,0.42828428,95941.0,95940.0,0.12685292]
[1733192490346,0.49685637,95941.0,95940.0,0.12585292]
[1733192490611,0.49685637,95941.0,95940.0,0.12485292]
[1733192490811,0.49685637,95941.0,95940.0,0.12785292]
[1733192491028,0.49685637,95941.0,95940.0,0.12985292]
[1733192491666,0.49685637,95941.0,95940.0,0.12685292]
[1733192491859,0.49685637,95941.0,95940.0,0.12785292]
[1733192492615,0.42828428,95941.0,95940.0,0.12785292]
[1733192492820,0.42828428,95941.0,95940.0,0.12585292]
[1733192493026,0.42828428,95941.0,95940.0,0.13670209]
[1733192493713,0.42828428,95941.0,95940.0,0.13470209]
[1733192493917,0.42828428,95941.0,95940.0,0.13570209]
[1733192494121,0.42828428,95941.0,95940.0,0.13770209]
[1733192494523,0.42828428,95941.0,95940.0,0.13570209]
[1733192494725,0.42828428,95941.0,95940.0,0.13770209]
[1733192495535,0.49201637,95941.0,95940.0,0.13770209]
[1733192495747,0.54041637,95941.0,95940.0,0.03485688]
[1733192495954,0.54041637,95941.0,95940.0,0.02500771]
[1733192496364,0.54041637,95941.0,95940.0,0.02500515]
[1733192496563,0.54041637,95941.0,95940.0,0.01152789]
[1733192497001,0.54041637,95941.0,95940.0,0.00952789]
[1733192499056,0.47668428,95941.0,95940.0,0.00952789]
[1733192499890,0.47668428,95941.0,95940.0,0.0017296]
[1733192500091,0.47668428,95941.0,95940.0,0.00952538]
[1733192501322,0.42828428,95941.0,95940.0,0.00952538]
[1733192503398,0.42828428,95941.0,95940.0,0.01052538]
[1733192503606,0.4488309,95941.0,95940.0,0.01052538]
[1733192505504,0.4488309,95941.0,95940.0,0.11337059]
[1733192505711,0.4488309,95941.0,95940.0,0.11237059]
[1733192506301,0.42828428,95941.0,95940.0,0.11237059]
[1733192506755,0.42828428,95941.0,95940.0,0.11337059]
[1733192507407,0.42828428,95941.0,95940.0,0.11237059]
[1733192507793,0.35018428,95941.0,95940.0,0.11237059]
[1733192508233,0.20018428,95941.0,95940.0,0.11237059]
[1733192508663,0.20018428,95941.0,95940.0,0.1222264]
[1733192509498,0.35018428,95941.0,95940.0,0.1222264]
[1733192509947,0.35018428,95941.0,95940.0,0.1262264]
[1733192510673,0.40610637,95941.0,95940.0,0.12621248]
[1733192510884,0.35018428,95941.0,95940.0,0.12621248]
[1733192511130,0.35018428,95941.0,95940.0,0.13121248]
[1733192511547,0.35018428,95941.0,95940.0,0.12621248]
[1733192511759,0.35018428,95941.0,95940.0,0.12921248]
[1733192511970,0.37141502,95941.0,95940.0,0.12921248]
[1733192512180,0.37141502,95941.0,95940.0,0.13321248]
[1733192512600,0.37141502,95941.0,95940.0,0.12921248]
[1733192512810,0.37141502,95941.0,95940.0,0.13321248]
[1733192513233,0.37141502,95941.0,95940.0,0.12621248]
[1733192513438,0.37141502,95941.0,95940.0,0.12821248]
[1733192513651,0.37141502,95941.0,95940.0,0.13221248]
[1733192513872,0.37141502,95941.0,95940.0,0.12621248]
[1733192514324,0.37141502,95941.0,95940.0,0.13421248]
[1733192516146,0.35018428,95941.0,95940.0,0.13421248]
[1733192519422,0.20018428,95941.0,95940.0,0.13421248]
[1733192521094,0.22759087,95941.0,95940.0,0.13421248]
[1733192521331,0.20018428,95941.0,95940.0,0.13421248]
[1733192521797,0.35018428,95941.0,95940.0,0.13421248]
[1733192523946,0.20018428,95941.0,95940.0,0.13421248]
[1733192528113,0.20018428,95941.0,95940.0,0.12435667]
[1733192528535,0.20018428,95941.0,95940.0,0.13421045]
[1733192534850,0.40381698,95941.0,95940.0,0.13421045]
[1733192535074,0.53091698,95941.0,95940.0,0.13421045]
[1733192535298,0.53091698,95941.0,95940.0,0.03136524]
[1733192535517,0.53091698,95941.0,95940.0,0.02151146]
[1733192536620,0.53091698,95941.0,95940.0,0.01751146]
[1733192536851,0.53091698,95941.0,95940.0,0.01951146]
[1733192537066,0.53091698,95941.0,95940.0,0.01151146]
[1733192537263,0.53091698,95941.0,95940.0,0.00951146]
[1733192537770,0.53191698,95941.0,95940.0,0.01351146]
[1733192537958,0.53191698,95941.0,95940.0,0.00951146]
[1733192538197,0.53391698,95941.0,95940.0,0.00951146]
[1733192539529,0.53291698,95941.0,95940.0,0.00951146]
[1733192539983,0.53391698,95941.0,95940.0,0.00951146]
[1733192540249,0.53191698,95941.0,95940.0,0.00951146]
[1733192540463,0.53391698,95941.0,95940.0,0.00951146]
[1733192541193,0.48028428,95941.0,95940.0,0.00951146]
[1733192542805,0.208524,95912.0,95910.0,0.0627992]
[1733192543041,0.208524,95912.0,95911.0,0.10284521]
[1733192543290,0.208524,95912.0,95911.0,0.11230758]
[1733192544216,0.20869957,95912.0,95911.0,0.11230758]
[1733192544474,0.20869957,95912.0,95911.0,0.16010758]
[1733192544725,0.20869957,95912.0,95911.0,0.15964521]
[1733192544955,0.20869957,95912.0,95911.0,0.16910758]
[1733192545919,0.20869957,95912.0,95911.0,0.25180758]
[1733192546345,0.20869957,95912.0,95911.0,0.25880758]
[1733192546834,0.00017557,95912.0,95911.0,0.25880758]
[1733192547281,0.00017557,95912.0,95911.0,0.24934521]
[1733192548157,0.00017557,95912.0,95911.0,0.25881232]
[1733192549281,0.00017557,95912.0,95911.0,0.17611232]
[1733192549532,0.04189673,95912.0,95911.0,0.13004192]
[1733192550411,0.00017557,95912.0,95911.0,0.13004192]
[1733192555668,0.15248231,95912.0,95911.0,0.13004192]
[1733192556113,0.15017557,95912.0,95911.0,0.13004192]
[1733192556555,0.15017557,95912.0,95911.0,0.12304192]
[1733192556762,0.15017557,95912.0,95911.0,0.12604192]
[1733192557222,0.15017557,95912.0,95911.0,0.11704192]
[1733192557636,0.15017557,95912.0,95911.0,0.12304192]
[1733192557849,0.15017557,95912.0,95911.0,0.11704192]
[1733192558339,0.15017557,95912.0,95911.0,0.12004192]
[1733192558547,0.15017557,95912.0,95911.0,0.11404192]
[1733192558677,0.15017557,95912.0,95911.0,0.12204192]
[1733192559083,0.15017557,95912.0,95911.0,0.11904192]
[1733192559962,0.15017557,95912.0,95911.0,0.12204192]
[1733192560359,0.15017557,95912.0,95911.0,0.11704192]
[1733192560564,0.20689673,95912.0,95911.0,0.11704192]
[1733192560826,0.20689673,95912.0,95911.0,0.12304192]
[1733192561031,0.15017557,95912.0,95911.0,0.11704192]
[1733192561248,0.15017557,95912.0,95911.0,0.12204192]
[1733192561679,0.15017557,95912.0,95911.0,0.12604192]
[1733192565343,0.23458234,95912.0,95911.0,0.12604192]
[1733192565553,0.3022974,95912.0,95911.0,0.12604192]
[1733192565751,0.3022974,95912.0,95911.0,0.11657481]
[1733192567250,0.23227557,95912.0,95911.0,0.11657481]
[1733192568390,0.15017557,95912.0,95911.0,0.11657481]
[1733192569420,0.15017557,95912.0,95911.0,0.11257481]
[1733192569846,0.15017557,95912.0,95911.0,0.11657481]
[1733192570052,0.15017557,95912.0,95911.0,0.10857481]
[1733192570266,0.21500673,95912.0,95911.0,0.11657481]
[1733192571109,0.21500673,95912.0,95911.0,0.10457481]
[1733192571468,0.21500673,95912.0,95911.0,0.11257481]
[1733192571684,0.21587173,95912.0,95911.0,0.10757481]
[1733192571879,0.21587173,95912.0,95911.0,0.10457481]
[1733192572324,0.21587173,95912.0,95911.0,0.10857481]
[1733192572689,0.21587173,95912.0,95911.0,0.10457481]
[1733192572891,0.21587173,95912.0,95911.0,0.10657481]
[1733192573924,0.21587173,95912.0,95911.0,0.11457481]
[1733192574346,0.21587173,95912.0,95911.0,0.10457481]
[1733192574549,0.15104057,95912.0,95911.0,0.10657481]
[1733192574974,0.15104057,95912.0,95911.0,0.10757481]
[1733192575385,0.15104057,95912.0,95911.0,0.10657481]
[1733192575701,0.15104057,95912.0,95911.0,0.11057481]
[1733192575914,0.15104057,95912.0,95911.0,0.10857481]
[1733192576148,0.15104057,95912.0,95911.0,0.11257481]
[1733192576943,0.15104057,95912.0,95911.0,0.10857481]
[1733192577209,0.15334745,95912.0,95911.0,0.10857481]
[1733192577451,0.15334745,95912.0,95911.0,0.11157481]
[1733192577655,0.15334745,95912.0,95911.0,0.11557481]
[1733192578290,0.15334745,95912.0,95911.0,0.11157481]
[1733192578513,0.15334745,95912.0,95911.0,0.11557481]
[1733192581986,0.15104057,95912.0,95911.0,0.11557481]
[1733192585639,0.21595823,95912.0,95911.0,0.11557481]
[1733192588886,0.15104057,95912.0,95911.0,0.11557481]
[1733192590812,0.15334745,95912.0,95911.0,0.11557481]
[1733192591924,0.20204745,95912.0,95911.0,0.11557481]
[1733192592140,0.20204745,95912.0,95911.0,0.0127296]
[1733192592648,0.15,95910.0,95899.0,2e-07]
[1733192592893,0.48415,95900.0,95899.0,2e-07]
[1733192598889,0.35855,95900.0,95899.0,0.10284541]
[1733192599600,0.208539,95906.0,95899.0,0.10284541]
[1733192599803,0.208549,95901.0,95900.0,0.10284521]
[1733192600664,0.0009925,95919.0,95901.0,0.0809]
[1733192600888,0.0009925,95919.0,95899.0,2e-07]
[1733192600889,0.0009925,95919.0,95911.0,0.22904521]
[1733192601094,0.208498,95924.0,95911.0,0.22904521]
[1733192601932,0.00204057,95912.0,95911.0,0.22904521]
[1733192602369,0.00204057,95912.0,95911.0,0.24457253]
[1733192602584,0.00304057,95912.0,95911.0,0.25357253]
[1733192602795,0.00304057,95912.0,95911.0,0.26289528]
[1733192603237,0.00204057,95912.0,95911.0,0.26289528]
[1733192603461,0.00304057,95912.0,95911.0,0.27189528]
[1733192604084,0.00304057,95912.0,95911.0,0.2718904]
[1733192604353,0.00304057,95912.0,95911.0,0.25636796]
[1733192604575,0.00304057,95912.0,95911.0,0.27188713]
[1733192605688,0.00304057,95912.0,95911.0,0.14568713]
[1733192605907,0.00304057,95912.0,95911.0,0.13016796]
[1733192606135,0.00304057,95912.0,95911.0,0.14568713]
[1733192606351,0.0244273,95912.0,95911.0,0.13016796]
[1733192606533,0.0234273,95912.0,95911.0,0.12116796]
[1733192606980,0.0224273,95912.0,95911.0,0.11816796]
[1733192607200,0.0234273,95912.0,95911.0,0.12716796]
[1733192607442,0.0224273,95912.0,95911.0,0.10284521]
[1733192607659,0.0224273,95912.0,95911.0,0.11216547]
[1733192607880,0.0234273,95912.0,95911.0,0.11816547]
[1733192608328,0.0224273,95912.0,95911.0,0.11216547]
[1733192608546,0.0224273,95912.0,95911.0,0.11416547]
[1733192609195,0.0224273,95912.0,95911.0,0.11216547]
[1733192609424,0.02473416,95912.0,95911.0,0.11616547]
[1733192609855,0.02473416,95912.0,95911.0,0.12016547]
[1733192610092,0.02473416,95912.0,95911.0,0.11616547]
[1733192610533,0.02473416,95912.0,95911.0,0.11216547]
[1733192610791,0.00334743,95912.0,95911.0,0.11216547]
[1733192611009,0.00434743,95912.0,95911.0,0.11916547]
[1733192611225,0.00334743,95912.0,95911.0,0.11216547]
[1733192611662,0.00334743,95912.0,95911.0,0.11416547]
[1733192612301,0.00334743,95912.0,95911.0,0.11716547]
[1733192612517,0.00104057,95912.0,95911.0,0.11716547]
[1733192612938,0.00104057,95912.0,95911.0,0.11216547]
[1733192613149,0.00204057,95912.0,95911.0,0.11816547]
[1733192613379,0.00204057,95912.0,95911.0,0.11916547]
[1733192613599,0.00334753,95912.0,95911.0,0.11316547]
[1733192613786,0.00334753,95912.0,95911.0,0.11516547]
[1733192614191,0.00334753,95912.0,95911.0,0.11716547]
[1733192614771,0.00334753,95912.0,95911.0,0.12493284]
[1733192614968,0.00334753,95912.0,95911.0,0.11716547]
[1733192615175,0.00334753,95912.0,95911.0,0.12648523]
[1733192615373,0.00334753,95912.0,95911.0,0.11716547]
[1733192615549,0.00334753,95912.0,95911.0,0.12648523]
[1733192615750,0.00334753,95912.0,95911.0,0.11716547]
[1733192615965,0.00334753,95912.0,95911.0,0.1264855]
[1733192616164,0.00104057,95912.0,95911.0,0.11516547]
[1733192616378,0.00104057,95912.0,95911.0,0.12448679]
[1733192616578,0.00104057,95912.0,95911.0,0.11416547]
[1733192616787,0.00104057,95912.0,95911.0,0.12648679]
[1733192616992,0.00104057,95912.0,95911.0,0.11516547]
[1733192617243,0.00104057,95912.0,95911.0,0.12348686]
[1733192617450,0.00104057,95912.0,95911.0,0.11816547]
[1733192619404,0.05790421,95912.0,95911.0,0.11816547]
[1733192619617,0.05790421,95912.0,95911.0,0.11903037]
[1733192620574,0.05790421,95912.0,95911.0,0.11703037]
[1733192620804,0.05790421,95912.0,95911.0,0.11303037]
[1733192621013,0.05790421,95912.0,95911.0,0.11503037]
[1733192621842,0.05790421,95912.0,95911.0,0.11603037]
[1733192622274,0.00104057,95912.0,95911.0,0.11503037]
[1733192622504,0.00104057,95912.0,95911.0,0.11403037]
[1733192622729,0.00104057,95912.0,95911.0,0.11703037]
[1733192624822,0.00104057,95912.0,95911.0,0.11603037]
[1733192625258,0.00104057,95912.0,95911.0,0.11803037]
[1733192626085,0.00104057,95912.0,95911.0,0.11503037]
[1733192626705,0.00104057,95912.0,95911.0,0.11903037]
[1733192627993,0.358524,95912.0,95911.0,0.11903037]
[1733192630566,0.358524,95912.0,95911.0,0.11503037]
[1733192631006,0.358524,95912.0,95911.0,0.11703037]
[1733192631221,0.358524,95912.0,95911.0,0.11903037]
[1733192639948,0.436224,95912.0,95911.0,0.11703037]
[1733192640386,0.436224,95912.0,95911.0,0.11303037]
[1733192640634,0.52172306,95912.0,95911.0,0.11503037]
[1733192640922,0.56852306,95912.0,95911.0,0.01018516]
[1733192641129,0.76866669,95912.0,95911.0,1.6e-07]